{"text_format":"1","workbook":"xlsx","n_sheets":2,"sheets":["السجل","الأرشيف"],"not_rendered":{"charts":0,"images":2,"macros":1,"external_links":0,"defined_names":8,"comments":0,"pivot_tables":0},"unopened":[],"bounds":{"document_bytes":16777216,"sheet_cells":100000,"rows_first":2000,"rows_last":500,"rows_between":2000,"halvings":0,"cell_chars":16384,"cell_head_chars":4096},"cells_cut":0,"cells_raw":0,"read":"whole","date_system":"1900"}

{"sheet":"السجل","index":0,"n_rows":29,"n_cols":13,"rows_kept":29,"cut":false,"hidden":false,"merged":[[1,2,1,3],[2,3,2,4]]}
[]
[]
[null,null,null,null,null,null,null,null,"ألكود","الاسم","الوظيفة","السن","الجنسية"]
[null,"الاسم","العدد",null,null,null,null,null,101,"أوفيسنا1","محاسب",41,"أوفيسنا1"]
[101,{"$f":"IFERROR(VLOOKUP(A5,$I$4:$M$14,2,0),\"\")","v":"أوفيسنا1"},1,null,null,null,null,null,102,"أوفيسنا2","محاسب",25,"أوفيسنا2"]
[104,{"$f":"IFERROR(VLOOKUP(A6,$I$4:$M$14,2,0),\"\")","v":"أوفيسنا4"},33,null,null,null,null,null,103,"أوفيسنا3","معلم",26,"أوفيسنا3"]
[null,"",null,null,null,null,null,null,104,"أوفيسنا4","مدرس",28,"أوفيسنا4"]
[null,"",null,null,null,null,null,null,105,"أوفيسنا5","تاجر",41,"أوفيسنا5"]
[null,"",null,null,null,null,null,null,106,"أوفيسنا6","مراجع",60,"أوفيسنا6"]
[null,"",null,null,null,null,null,null,107,"أوفيسنا7","طالب",30,"أوفيسنا7"]
[null,"",null,null,null,null,null,null,108,"أوفيسنا8","محاسب",50,"أوفيسنا8"]
[null,"",null,null,null,null,null,null,109,"أوفيسنا9","محام",40,"أوفيسنا9"]
[null,"",null,null,null,null,null,null,110,"أوفيسنا10","معلم",40,"أوفيسنا10"]
[null,"",null,null,null,null,null,null,111,"أوفيسنا11",null,null,"أوفيسنا11"]
[null,""]
[null,""]
[null,""]
[null,""]
[null,""]
[null,""]
[null,""]
[null,""]
[null,""]
[null,""]
[null,""]
[null,""]
[null,""]
[null,""]
[{"$f":"IF(OR(B29=0,B29=\"\"),\"\",COUNTA(B$5:B29))","v":""},{"$f":"IFERROR(VLOOKUP(#REF!,Asnaf,2,FALSE),\"\")","v":""}]

{"sheet":"الأرشيف","index":1,"n_rows":4,"n_cols":4,"rows_kept":4,"cut":false,"hidden":false,"merged":[]}
[null,"التاريخ","الاسم","عدد المرات"]
[null,"2023-02-21","أوفيسنا1",7]
[null,null,"أوفيسنا4",99]
[null,null,"أوفيسنا5"]